Cogmind - Beta 17 @@@ ROGUE MODE // 2026.08.06 @ 10:54:00 Player: Minty Result: Destroyed by Y-54 Guardian with Flak Gun Performance ------------- Evolutions (3) 1500 Regions Visited (4) 800 Robots Destroyed (87) 435 Value Destroyed (2961) 2961 Prototype IDs (23) 460 Alien Tech Used (0) 0 Bonus (13035) 13035 TOTAL SCORE: 19191 Bonus ------- High Alert Combat Kills 336 Follower Combat Kills 49 Prayed to X0-1V1 5000 Major X0-1V1 Interference 4650 Subatomizer Sterilization 3000 Cogmind --------- Core Integrity 0/625 Matter 240/900 Energy 1295/1300 System Corruption 2% Temperature Cool (-654) Movement Core (100) Ox1 Location -7/Factory Parts ------- > --- POWER (1) -------- (None) > --- PROPULSION (3) --- (None) > --- UTILITY (7) ------ Structural Scanner Terrain Scan Processor X0-1V1's Piety Tracker > --- WEAPON (2) ------- Heavy Mace > --- INVENTORY (5) ---- Medium Storage Unit Advanced Beam Rifle Multitool Peak State ------------ > --- POWER ------------ Deuterium Engine > --- PROPULSION ------- VSS Leg Wheel Armored Wheel > --- UTILITY ---------- Scrap Shield Tower Shield Self-contained Transmogrifier > --- WEAPON ----------- EM Pulse Cannon Katana > --- INVENTORY -------- Light Deuterium Engine Improved Assault Rifle Improved Assault Rifle Multitool [Rating: 49] Favorites ----------- Power Light Ion Engine Engine Light Ion Engine Power Core Light Nuclear Core Propulsion Armored Wheel Treads Light Treads Leg Aluminum Leg Wheel Armored Wheel Utility X0-1V1's Piety Tracker Device X0-1V1's Piety Tracker Storage Small Storage Unit Processor Terrain Scan Processor Protection Powered Armor Weapon Advanced Beam Rifle Energy Gun Advanced Beam Rifle Energy Cannon Subdweller Beam Cannon Ballistic Gun Assault Rifle Ballistic Cannon Heavy Assault Cannon Launcher Subdweller Shrapnel Launcher Special Weapon Multitool Impact Weapon Mace Slashing Weapon Katana Build | -11 -10 -10 -8 -7 ------- Run | Yrd Mat Sub Mat Fac Slots Evolved 6 | . . . 4 2 Power . | . . . . . Propulsion 2 | . . . 2 . Utility 4 | . . . 2 2 Weapon . | . . . . . Parts Attached 79 | . 6 36 23 14 Power 6 | . . 3 1 2 Engine 4 | . . 3 . 1 Core 2 | . . . 1 1 Reactor . | . . . . . Propulsion 17 | . 1 8 4 4 Treads 2 | . . 2 . . Leg 4 | . 1 . 1 2 Wheel 11 | . . 6 3 2 Hover . | . . . . . Flight . | . . . . . Utility 26 | . 2 5 14 5 Device 11 | . 2 2 5 2 Storage 2 | . . 1 . 1 Processor 2 | . . . 1 1 Hackware . | . . . . . Protection 11 | . . 2 8 1 Artifact . | . . . . . Weapon 30 | . 3 20 4 3 Energy Gun 8 | . 1 4 3 . Energy Cannon 2 | . 1 1 . . Ballistic Gun 11 | . 1 10 . . Ballistic Cannon 1 | . . . . 1 Launcher 3 | . . 2 1 . Special Weapon 1 | . . . . 1 Impact Weapon 3 | . . 2 . 1 Slashing Weapon 1 | . . 1 . . Piercing Weapon . | . . . . . Special Melee Weapon . | . . . . . Unidentified Prototypes 4 | . 1 1 2 . Corrupted Parts 1 | . . . 1 . System Corruption 1 | . . . 1 . Parts Lost 30 | . 1 11 5 13 Power 4 | . . 2 . 2 Propulsion 10 | . . 3 1 6 Utility 9 | . . 2 4 3 Weapon 7 | . 1 4 . 2 Highest Loss Streak 9 | . 1 5 4 9 To Critical Strikes . | . . . . . Average Backups 5 | 6 5 5 4 3 Power . | 1 1 . . . Propulsion 1 | 4 4 1 . . Utility . | . . . . . Weapon 3 | 1 . 4 1 1 Tool/Special . | . . . . . Unused Backups 24 | . 7 15 2 . Power 3 | . 1 1 1 . Propulsion 4 | . 2 2 . . Utility 4 | . 1 2 1 . Weapon 13 | . 3 10 . . Tool/Special . | . . . . . Average Slot Usage (%) 84 | . 97 86 82 67 Engine 9 | . 14 12 5 . Core 1 | . . . 2 4 Treads 1 | . . 2 . . Leg 3 | . 28 . . . Wheel 14 | . . 15 21 9 Device 13 | . 12 12 20 11 Storage 6 | . 14 8 . 4 Processor 2 | . . . 2 13 Protection 5 | . . 3 12 9 Energy Gun 4 | . 4 3 7 6 Energy Cannon 3 | . 5 5 1 . Ballistic Gun 10 | . 17 15 . . Impact Weapon 1 | . . 2 . . Slashing Weapon 2 | . . 2 3 . Peak Build Rating 49 | 6 19 32 49 44 Average Rating 24 | 6 6 22 35 33 On Entrance 15 | 6 6 7 26 33 Avg Prop Armor Cover (%) 15 | . . 14 . 21 Naked Turns . | . . . . . Heaviest Build 73 | 11 14 35 73 51 Greatest Support 44 | 20 20 40 44 38 Greatest Overweight (x) 16 | . . 2 6 16 Average Overweight (x) . | . . . 1 . Largest Inventory Capacity 35 | 8 8 35 5 10 Average Capacity 6 | 8 8 6 5 8 Most Carried 8 | 6 7 8 5 7 Average Carried 5 | 6 5 5 4 3 Final Capacity 8 | 8 8 5 5 5 Final Carried 6 | 6 5 5 5 3 Transmogrified Parts 8 | . . 2 6 . Integrity Recovered 131 | . . 19 112 . Class Distribution -------------------- 84% | Mutant 10% | Gunner Dominant Class ---------------- Mutant | -10/Materials Mutant | -10/Subcaves Mutant | -8/Materials Mutant | -7/Factory Resources | -11 -10 -10 -8 -7 ----------- Run | Yrd Mat Sub Mat Fac Matter Collected 3260 | 169 86 1564 1088 353 Remotely . | . . . . . Salvage Created 3074 | . 193 897 1366 618 Parts 163 | . 15 69 45 34 Haulers Intercepted . | . . . . . Recyclers Shooed 6 | . 1 . 2 3 Parts Field Recycled . | . . . . . Retrieved Matter . | . . . . . Parts Self-Destructed 20 | . . 20 . . Prevented . | . . . . . Parts Restored . | . . . . . Kills | -11 -10 -10 -8 -7 ------- Run | Yrd Mat Sub Mat Fac Combat Hostiles Destroyed 70 | . 8 25 22 15 Melee 8 | . . . 7 1 Guns 26 | . 8 8 7 3 Cannons 17 | . . 3 5 9 AOE 13 | . . 12 1 . Classes Destroyed 19 | . 2 4 12 1 Worker 3 | . . . 1 2 Builder 6 | . . . 4 2 Recycler 2 | . . . 2 . Carrier 1 | . . . 1 . Operator 2 | . . . 2 . Turret 2 | . . 2 . . Watcher 1 | . . . 1 . Swarmer 15 | . 6 4 2 3 Grunt 24 | . 2 7 9 6 Brawler 1 | . . . 1 . Duelist 1 | . . . 1 . Protector 1 | . . . 1 . Sentry 8 | . . . 5 3 Specialist 2 | . . . 2 . Programmer 2 | . . . . 2 Heavy 2 | . . . 1 1 Artisan 2 | . . 2 . . Cobbler 1 | . . 1 . . Subdweller 14 | . . 14 . . Best Kill Streak 11 | . 6 6 7 11 Combat Bots Only 6 | . 6 6 6 6 Max Kills in Single Turn 4 | . 1 4 2 1 Gunslinging . | . . . . . Exploded 4 | . . 4 1 . Melee 1 | . . . 1 1 Uniques/NPCs Destroyed . | . . . . . Combat | -11 -10 -10 -8 -7 -------- Run | Yrd Mat Sub Mat Fac Hostile Shots Fired 644 | . 55 130 147 312 Missed 216 | . 21 36 50 109 Hits 428 | . 34 94 97 203 Melee 3 | . . . 3 . Projectile 425 | . 34 94 94 203 AOE 12 | . . 10 . 2 Critical Strikes 10 | . . 2 6 2 Part Disruptions 1 | . . . . 1 Damage Taken 6107 | . 299 1984 1406 2418 Core 1236 | . 58 299 250 629 Absorbed by Shields . | . . . . . Core Remaining (%) 81 | 100 . 76 67 . Volleys Fired 219 | . 25 68 54 72 Largest 5 | . 2 5 2 2 Hottest 165 | . 60 165 122 122 Shots Fired 413 | . 46 183 90 94 Gun 296 | . 46 134 63 53 Cannon 97 | . . 32 27 38 Launcher 17 | . . 17 . . Special 3 | . . . . 3 Kinetic 235 | . 35 132 30 38 Thermal 148 | . 1 37 54 56 Explosive 1 | . . 1 . . Electromagnetic 29 | . 10 13 6 . Robot Hit Streak 25 | . 3 12 25 17 Robot Miss Streak 7 | . 3 7 2 3 Penetration Max 1 | . . . . 1 Secondary Targets 4 | . 3 . . 1 Max Gunslinging Chain 1 | . 1 . . 1 Shots Hit Robots 300 | . 23 103 101 73 Core Hits 113 | . 9 46 36 22 Critical Kills 1 | . . 1 . . Critical Parts Destroyed 1 | . . . . 1 Critical Strikes 15 | . . 1 8 6 Burn 5 | . . . 4 1 Meltdown 1 | . . 1 . . Blast 4 | . . . . 4 Smash 1 | . . . . 1 Sever 4 | . . . 4 . Melee Attacks 47 | . . 13 31 3 Impact 4 | . . 1 . 3 Slashing 43 | . . 12 31 . Piercing . | . . . . . Sneak Attacks 3 | . . 1 2 . Combat Hostiles . | . . . . . Follow-up Attacks . | . . . . . Damage Inflicted 8676 | . 257 3232 2577 2610 Guns 3391 | . 252 1062 1133 944 Cannons 2585 | . . 495 503 1587 Explosions 1568 | . . 1515 53 . Melee 1115 | . . 160 888 67 Ramming 11 | . 5 . . 6 Kinetic 4713 | . 208 2391 527 1587 Thermal 2516 | . . 527 1039 950 Explosive 89 | . . 89 . . Electromagnetic 232 | . 44 65 123 . Impact 67 | . . . . 67 Slashing 1048 | . . 160 888 . Piercing . | . . . . . Highest Corruption 22 | . . 22 1 2 Average Corruption 2 | . . 7 1 1 Corruption Purged . | . . . . . Corruption Blocked . | . . . . . Effects 19 | . . 11 2 6 Message Errors 2 | . . 2 . . Matter Fused 8 | . . 6 . 2 Heat Flow Errors 5 | . . . 2 3 Energy Discharges 1 | . . 1 . . Data Loss (minor) 2 | . . 1 . 1 Data Loss (major) 1 | . . 1 . . Overload Shots . | . . . . . Overflow Damage 454 | . . 17 141 296 Projectiles 275 | . . . 9 266 Explosions 19 | . . 17 2 . Melee 160 | . . . 130 30 Knockbacks 18 | . . . 5 13 Impact . | . . . . . Kinetic 17 | . . . 5 12 Secondary 1 | . . . . 1 Self-Inflicted Damage 107 | . . 84 23 . Shots 4 | . . 3 1 . Rammed . | . . . . . Targets Rammed 4 | . 2 . . 2 Kicked 4 | . 2 . . 2 Crushed . | . . . . . Highest Temperature 246 | . 12 246 239 175 Average Temperature 65 | . 7 128 112 57 Received Heat Transfer 1599 | . 54 372 531 642 Siege Activations . | . . . . . Martial Activations . | . . . . . Shielding Activations . | . . . . . Robots Disrupted 1 | . . . . 1 Combat Hostiles 1 | . . . . 1 Robots Corrupted . | . . . . . Combat Hostiles . | . . . . . Parts Fried 5 | . . . 2 3 Impact Corruptions 3 | . . . . 3 Robots Melted 5 | . . 1 2 2 Combat Hostiles 5 | . . 1 2 2 Parts Melted 19 | . . . 14 5 Heat Transferred 4700 | . . 777 2122 1801 Parts Sabotaged . | . . . . . Parts Stolen . | . . . . . Parts Stripped . | . . . . . Power Chain Reactions 1 | . . . 1 . Alert | -11 -10 -10 -8 -7 ------- Run | Yrd Mat Sub Mat Fac Maximum Alert Level 3 | . . . 3 2 Low Security (%) 25 | 100 100 . 2 . Level 1 35 | . . . 12 86 Level 2 22 | . . . 44 13 Level 3 16 | . . . 40 . Level 4 . | . . . . . Level 5 . | . . . . . High Security . | . . . . . Max Security . | . . . . . Sterilizations 1 | . . . 1 . Peak Influence 875 | . 140 . 875 427 Initial 375 | . . . . 375 Average 381 | . 66 . 624 331 Influence Increases 2237 | . 229 260 1307 441 Destroy 0b10 Robot/C 1260 | . 160 260 540 300 Destroy 0b10 Robot/NC 75 | . . . 55 20 Destroy Leader 272 | . 40 . 142 90 Allied During Kill 24 | . . . 24 . Successful Hack 43 | . 29 . 14 . Disable Machine 30 | . . . 30 . Anti-Garrison Action 150 | . . . 150 . Destroy Structure 35 | . . . 19 16 Lose Combat Pursuer 60 | . . . 45 15 Miscellaneous 288 | . . . 288 . Influence Decreases 1861 | . 204 285 480 892 Entered New Map 465 | . . 13 . 452 Time Decay 1086 | . 194 232 350 310 Lost Part 230 | . 10 40 50 130 Lost Ally 80 | . . . 80 . Squads Dispatched 18 | . 2 . 8 8 Investigation 5 | . 1 . 2 2 Extermination 1 | . . . . 1 Reinforcement 4 | . 1 . 2 1 Assault 2 | . . . 2 . Garrison 6 | . . . 2 4 Intercept . | . . . . . Searches Triggered . | . . . . . Construction Impeded . | . . . . . Haulers Reinforced . | . . . . . Active Scanning Responses . | . . . . . Cargo Convoy Interrupts . | . . . . . Stealth | -11 -10 -10 -8 -7 --------- Run | Yrd Mat Sub Mat Fac Distress Signals 2 | . . . 1 1 Communications Jammed . | . . . . . Distress Signals . | . . . . . Times Spotted 106 | . 13 41 33 19 Peak Tracking Total 6 | . 5 6 6 3 Tactical Retreats 4 | . . . 3 1 Traps | -11 -10 -10 -8 -7 ------- Run | Yrd Mat Sub Mat Fac Traps Triggered 3 | . 1 . 1 1 Indirectly . | . . . . . Trap Hack Attempts . | . . . . . Triggered . | . . . . . Disarmed . | . . . . . Reprogrammed . | . . . . . Reused . | . . . . . Traps Extracted . | . . . . . Installed . | . . . . . Triggered . | . . . . . Machines | -11 -10 -10 -8 -7 ---------- Run | Yrd Mat Sub Mat Fac Machines Disabled 8 | . . 5 3 . Max in Single Turn 2 | . . 2 1 . Garrison Access 1 | . . . 1 . Machines Repaired . | . . . . . Machines Dismantled . | . . . . . Machines Sabotaged . | . . . . . Overloaded Fab Kills . | . . . . . Hacking | -11 -10 -10 -8 -7 --------- Run | Yrd Mat Sub Mat Fac Machines Accessed 15 | . 6 2 4 3 Terminals 9 | . 4 . 3 2 Fabricators 1 | . . . . 1 Repair Stations . | . . . . . Recycling Units 2 | . 2 . . . Scanalyzers . | . . . . . Garrison Access 1 | . . . 1 . Total Hacks 44 | . 20 6 14 4 Successful 25 | . 13 6 4 2 Failed 19 | . 7 . 10 2 Catastrophic 8 | . 3 . 3 2 Database Lockouts . | . . . . . Manual 16 | . 7 . 8 1 Terminals 27 | . 16 . 9 2 Fabricators 2 | . . . . 2 Repair Stations . | . . . . . Recycling Units 4 | . 4 . . . Scanalyzers . | . . . . . Garrison Access 5 | . . . 5 . Terminal Hacks 16 | . 8 6 2 . Record 5 | . . 5 . . Robot Analysis 1 | . . . 1 . Prototype ID Bank 1 | . 1 . . . Level Access Points 1 | . 1 . . . Branch Access Points 2 | . 1 . 1 . Dispatch Records 1 | . 1 . . . Maintenance Status 1 | . 1 . . . Security Status 1 | . 1 . . . Hauler Manifests 1 | . 1 . . . Zone Layout 1 | . 1 . . . Proto ID Catalog 1 | . . 1 . . Fabricator Hacks 1 | . . . . 1 Network Status 1 | . . . . 1 Repair Station Hacks . | . . . . . Recycling Unit Hacks 4 | . 4 . . . Process 1 | . 1 . . . Report Inventory 2 | . 2 . . . Retrieve Matter 1 | . 1 . . . Scanalyzer . | . . . . . Garrison Access Hacks . | . . . . . Unauthorized Hacks 4 | . 1 . 2 1 Terminals 4 | . 1 . 2 1 Botnet 2 | . 1 . 1 . Skim 1 | . . . 1 . Search 1 | . . . . 1 Fabricators . | . . . . . Repair Stations . | . . . . . Recycling Units . | . . . . . Scanalyzers . | . . . . . Garrison Access . | . . . . . Data Cores Recovered 2 | . . . 2 . Used . | . . . . . Hacking Detections 11 | . 5 . 4 2 Full Trace Events 5 | . 1 . 3 1 Feedback Events . | . . . . . Feedback Blocked . | . . . . . Robot Schematics Acquired . | . . . . . Robots Built . | . . . . . Authchips . | . . . . . Time . | . . . . . Total Robot Build Rating . | . . . . . Part Schematics Acquired . | . . . . . Parts Built . | . . . . . Authchips . | . . . . . Time . | . . . . . Total Part Build Rating . | . . . . . Part Studies Acquired . | . . . . . Parts Repaired . | . . . . . Time . | . . . . . Parts Recycled . | . . . . . Recycled Matter 112 | . 112 . . . Retrieved Matter 177 | . 177 . . . Retrieved Components . | . . . . . Parts Scanalyzed . | . . . . . Part Schematics Acquired . | . . . . . Parts Damaged . | . . . . . Bothacking | -11 -10 -10 -8 -7 ------------ Run | Yrd Mat Sub Mat Fac Used RIF Installer . | . . . . . Robots Hacked . | . . . . . Non-combat . | . . . . . Combat . | . . . . . Robot Hacks Applied . | . . . . . Relay Couplers Released 1 | . . . 1 . Machine Destruction 1 | . . . 1 . Fabnet Peak Effective % . | . . . . . Robots Rewired . | . . . . . Allies Hacked . | . . . . . Hacks Repelled . | . . . . . Allies | -11 -10 -10 -8 -7 -------- Run | Yrd Mat Sub Mat Fac Total Allies 5 | . . 1 4 . Largest Group 4 | . . 1 4 . Highest-Rated Group 100 | . . 90 100 . Highest-Rated Ally 90 | . . 90 25 . Total Orders . | . . . . . Ally Attacks 31 | . . . 31 . Total Damage 454 | . . . 454 . Kills 5 | . . . 5 . Allies Corrupted . | . . . . . Allies Melted . | . . . . . X0-1V1 Amusement Gains 95 | . 10 7 78 . Good Acts 86 | . . 66 14 6 Bad Acts 58 | . . 50 6 2 Intel | -11 -10 -10 -8 -7 ------- Run | Yrd Mat Sub Mat Fac Active Infowar (turns) 1421 | . 425 62 366 568 Terrain 856 | . . . 366 490 Structural 162 | . . . . 162 Seismic 487 | . 425 62 . . Robot Analysis Total 1 | . . . 1 . Derelict Logs Recovered 2 | . . 2 . . Drone Launches . | . . . . . Drone Recoveries . | . . . . . Exploration | -11 -10 -10 -8 -7 ------------- Run | Yrd Mat Sub Mat Fac Turns Passed 4373 | 5 484 2413 781 690 Spaces Moved 3038 | 5 268 1942 434 389 Core 158 | . . . . 158 Treads 10 | . . 10 . . Legs 321 | 5 268 44 . 4 Wheels 2549 | . . 1888 434 227 Hover . | . . . . . Flight . | . . . . . Fastest Speed 50 | 120 120 90 85 50 Average Speed 105 | 120 120 103 105 103 Slowest Speed 850 | 120 120 160 180 850 Overloaded Moves . | . . . . . Propulsion Burnouts . | . . . . . Robots Hopped . | . . . . . Potential Cave-ins . | . . . . . Cave-ins Triggered . | . . . . . Exploration Rate (%) 41 | 1 60 96 35 13 Regions Visited 4 Branch Regions 1 Pre-discovered Areas . | . . . . . Known Exits Taken 2 | . . 1 1 . Unknown Exits Taken 2 | 1 1 . . . Scrap Searched 2 | . . 2 . . Spaces Dug 2 | . . 2 . . Terrain Destroyed 211 | . . 187 8 16 Melee 2 | . . 2 . . Projectile 26 | . . 5 5 16 AOE 183 | . . 180 3 . Terrain Rammed . | . . . . . Walls Destroyed . | . . . . . Machines Disabled . | . . . . . Actions | -11 -10 -10 -8 -7 --------- Run | Yrd Mat Sub Mat Fac Total 3758 | 4 385 2191 616 562 Wait 225 | . 78 46 49 52 Move 3034 | 4 267 1941 433 389 Hop . | . . . . . Pick Up 42 | . 2 30 7 3 Fast Attach 44 | . 2 13 19 10 Attach 33 | . 1 18 2 12 Detach 26 | . 1 10 4 11 Swap 34 | . 4 23 5 2 Drop 45 | . 3 24 12 6 Fire 219 | . 25 68 54 72 Melee 46 | . . 12 31 3 Ram . | . . . . . Kick 4 | . 2 . . 2 Crush . | . . . . . Escape Stasis 6 | . . 6 . . Rewire . | . . . . . Trap . | . . . . . Miscellaneous . | . . . . . Route ------- -11/Scrapyard -10/Materials (discovered 5 exits: *Mat x3 / *Min / *Sub) -10/Subcaves (discovered 2 exits: *Mat / *Rec) -8/Materials (discovered 3 exits: *Fac x3) -7/Factory History --------- Turn | Location | Event 1 | -11/Scrapyard | Discovered new exit (range 1) 6 | -11/Scrapyard | Entered Materials 35 | -10/Materials | Identified exit to Mines 35 | -10/Materials | Identified exit to Materials 313 | -10/Materials | Build established: Mutant 445 | -10/Materials | Discovered new exit (range 6) 481 | -10/Materials | Prayed at D.C.S.S. Altar Unit 490 | -10/Materials | Entered Subcaves 505 | -10/Subcaves | Identified exit to Recycling 505 | -10/Subcaves | X0-1V1 revealed exit location to -9/Recycling 511 | -10/Subcaves | Heat dissipation permanently improved by X0-1V1 (+25; -125 max core) 550 | -10/Subcaves | Ambushed by Subdweller buried in earth 560 | -10/Subcaves | X0-1V1 whisked you away to safety 561 | -10/Subcaves | Ambushed by Subdwellers from Twisted Machinery 604 | -10/Subcaves | Lost 5 parts (1p2n1u1w) 715 | -10/Subcaves | Shifting Twisted Machinery released Sub. Beam Cannon 799 | -10/Subcaves | Core integrity restored by X0-1V1 (+27) 1016 | -10/Subcaves | Disturbed a concealed Subdweller 1093 | -10/Subcaves | X0-1V1 activates XOMVISION 1112 | -10/Subcaves | System corruption reached 10% 1127 | -10/Subcaves | Shifting Twisted Machinery released Riot Gun 1127 | -10/Subcaves | Shifting Twisted Machinery released Sub. Machine Gun 1128 | -10/Subcaves | Identified exit to Materials 1128 | -10/Subcaves | X0-1V1 revealed exit location to -8/Materials 1133 | -10/Subcaves | X0-1V1 sent hostile G-34 Mercenary (x4) 1153 | -10/Subcaves | Core integrity restored by X0-1V1 (+18) 1190 | -10/Subcaves | X0-1V1 revealed exit location to -8/Materials 1263 | -10/Subcaves | Learned 4 Materials zone layouts 1276 | -10/Subcaves | Visited Clippyterm 1279 | -10/Subcaves | Learned Factory fabricator intel 1279 | -10/Subcaves | Learned Research machine intel 1338 | -10/Subcaves | X0-1V1 activates XOMVISION 1415 | -10/Subcaves | X0-1V1 sent you into danger 1417 | -10/Subcaves | Weapon slot count temporarily expanded by X0-1V1 (+1) 1421 | -10/Subcaves | Core integrity fell below 50% 1593 | -10/Subcaves | Core integrity fell below 20% 1609 | -10/Subcaves | X0-1V1 sent hostile G-34 Mercenary (x4) 1617 | -10/Subcaves | X0-1V1 mutated your Weapon slot to Utility slot 1630 | -10/Subcaves | X0-1V1 tapped a No Entrance sign 1632 | -10/Subcaves | Core integrity restored by X0-1V1 (+23) 1636 | -10/Subcaves | X0-1V1 activates XOMVISION 1677 | -10/Subcaves | Core integrity restored by X0-1V1 (+35) 1683 | -10/Subcaves | X0-1V1 mutated your Propulsion slot to Weapon slot 1691 | -10/Subcaves | X0-1V1 sent you into danger 1694 | -10/Subcaves | Ambushed by Subdweller buried in earth 1696 | -10/Subcaves | Ambushed by Subdweller buried in earth 1703 | -10/Subcaves | X0-1V1 sent hostile S-10 Pest (x5) 1738 | -10/Subcaves | Core integrity restored by X0-1V1 (+25) 1743 | -10/Subcaves | X0-1V1 mutated your Utility slot to Weapon slot 1757 | -10/Subcaves | X0-1V1 sent you into danger 1768 | -10/Subcaves | Weapon slot count temporarily expanded by X0-1V1 (+3) 1770 | -10/Subcaves | X0-1V1 sent allied H-61 Shepherd (x1) 1791 | -10/Subcaves | X0-1V1 rewrote H-61 Shepherd IFF filter 1802 | -10/Subcaves | Core integrity restored by X0-1V1 (+22) 1820 | -10/Subcaves | X0-1V1 mutated your Weapon slot to Propulsion slot 1861 | -10/Subcaves | Core integrity restored by X0-1V1 (+30) 1911 | -10/Subcaves | X0-1V1 sent you into danger 1932 | -10/Subcaves | Core integrity restored by X0-1V1 (+18) 1953 | -10/Subcaves | X0-1V1 mutated your Propulsion slot to Utility slot 1968 | -10/Subcaves | X0-1V1 activates XOMVISION 2082 | -10/Subcaves | Core integrity restored by X0-1V1 (+35) 2435 | -10/Subcaves | Core integrity restored by X0-1V1 (+36) 2575 | -10/Subcaves | Learned Materials terminal intel 2640 | -10/Subcaves | Visited 4L-MR0's lab 2650 | -10/Subcaves | Found Prototype Device 2650 | -10/Subcaves | Identified Sfc. Transmogrifier 2657 | -10/Subcaves | Found Tower Shield 2717 | -10/Subcaves | X0-1V1 activates XOMVISION 2903 | -10/Subcaves | Entered Materials 2903 | -8/Materials | Evolved 4 slots: Propulsion x2, Utility x2 2903 | -8/Materials | X0-1V1 released a cloud of subatomizers 2904 | -8/Materials | Identified exit to Factory 2905 | -8/Materials | Loaded intel: 11 terminal locations 2906 | -8/Materials | Attached Tower Shield, gained temporary slots: Power, Propulsion x2, Utility x2, Weapon x2 2920 | -8/Materials | X0-1V1 added 0b10 threat records associated with you (major) 2922 | -8/Materials | Core integrity permanently improved by X0-1V1 (+350) 2933 | -8/Materials | X0-1V1 foreshadows a heat wave 2934 | -8/Materials | X0-1V1 revealed exit location to -7/Factory 2942 | -8/Materials | X0-1V1 announced a LAN party 2951 | -8/Materials | X0-1V1 sent you to a vault 2966 | -8/Materials | Garrison activated, responded to threat 3032 | -8/Materials | Lost 4 allies 3100 | -8/Materials | Lost 4 parts (1n3u) 3100 | -8/Materials | Ambient heat levels rising (+10) 3169 | -8/Materials | X0-1V1 revealed exit location to -7/Factory 3286 | -8/Materials | Ambient heat levels rising (+10) 3339 | -8/Materials | X0-1V1 sent you into danger 3443 | -8/Materials | Ambient heat levels falling (-10) 3511 | -8/Materials | Found Powered Armor 3515 | -8/Materials | Found Powered Armor 3517 | -8/Materials | Found Powered Armor 3520 | -8/Materials | Found Powered Armor 3572 | -8/Materials | Ambient heat levels falling (-10) 3595 | -8/Materials | Sterilization system engaged 3595 | -8/Materials | Non-combat units ordered to evacuate 3684 | -8/Materials | Entered Factory 3684 | -7/Factory | Evolved 2 slots: Utility x2 3685 | -7/Factory | Loaded intel: 6 fabricator locations 3721 | -7/Factory | Sight range permanently improved by X0-1V1 (+2; -300 max core) 3802 | -7/Factory | Garrison activated, responded to threat 4292 | -7/Factory | Garrison activated, responded to threat 4309 | -7/Factory | Core integrity fell below 50% 4362 | -7/Factory | Core integrity fell below 20% 4374 | -7/Factory | Destroyed by Y-54 Guardian with Flak Gun Last Messages --------------- 04352_ Imp. Carbon-fiber Leg destroyed. 04352_ Deuterium Engine destroyed. 04353_ X0-1V1 reimagines you as a refrigerator in hell. 04353_ Acquired 54 matter. 04353_ Acquired 44 matter. 04353_ X0-1V1: "The ol' switcheroo!" Form resolidifies at new position. 04360_ K-01 Serf collects debris. 04360_ Acquired Hvy. Mace. 04363_ Acquired 64 matter. 04371_ X0-1V1: "The ol' switcheroo!" G-47 Trooper form resolidifies at new position. Form resolidifies at new position. 04371_ Imp. Carbon-fiber Leg destroyed. 04374_ G-47 Trooper suffers critical hit (Smash). 04374_ Destroyed Broken Aluminum Leg. 04374_ Destroyed Imp. Heat Sink. 04374_ G-47 Trooper system corrupted by crushing effect. 04374_ G-47 Trooper destroyed. 04374_ X0-1V1 giggles madly! Map ----- +----------------------------------------------------+ | ?????????????????????????????????????????????????? | | ?????????????????????????????????????????????????? | | "????????????????????????????????????????????????? | | ? ???????????????????????????????????????????????? | | ?? ? ????????????????????????? ????????????????? | | ? ??????????????????????????? # ??????????????? | | #????????????????????? # ??????????????? | | ##+######????? ??????????????? + ??????????????? | | ???? ? ????????????? # ??????????????? | | ##???#? ? ???? ????????? # ??????????????? | | ###### ?????#????????? # ??????????????? | | ##?###?## ?? ? ?? ?????## # ??????????????? | | ##?##?### ????"??""????## # ??????????????? | | #+#######??### ##???" "?? ?### ##??????????????? | | """""? ? # ##???? ""????## ##??????????????? | | ? ?""""" ??? # + ? ? ? ???## ##??????????????? | | ?"""?"?? # ##??"??????#?## ##??????????????? | | ???"??" ? # ##???" ?? ?#?## ##??????????????? | | ? ? ? ? ? # ## ?"??? ? #### ### ????????????? | | ? # ## #### ### ????????????? | | ############## ############# # ????????????? | | ############# # ????????????? | | ######""####; % # ????????????? | | + Y + ????????????? | | ###########;; r * # ????????????? | | #############% @% # ????????????? | | ##??##?################+##; # ????????????? | | ###?##?###?###### =[ ! ######### ????????????? | | ####?#####???#### [ ######### ????????????? | | ########?#?##?### """ """ ##????????????????????? | | ###?#######????## """ """ ##?#??????????????????? | | ####?#?#????##?## """ """ ##????????????????????? | | ######??#?#?#??## ##????????????????????? | | #####????####??### ##????????????????????? | | ####????#?????####! ! ##????????????????????? | | ?#?#?###?###?##?#############????????????????????? | | ### ? ??##??#############????????????????????? | | ??? ??"??"??####???##????????????????????????????? | | #????????""??##??????##??????????????????????????? | | ????"???? ???#????###????????????????????????????? | | ?????????????????????????????????????????????????? | | ?????????????????????????????????????????????????? | | ?????????????????????????????????????????????????? | | ?????????????????????????????????????????????????? | | ?????????????????????????????????????????????????? | | ?????????????????????????????????????????????????? | | ?????????????????????????????????????????????????? | | ?????????????????????????????????????????????????? | | ?????????????????????????????????????????????????? | | ?????????????????????????????????????????????????? | +----------------------------------------------------+ Best States ------------- Heat Dissipation 162 Energy Generation 15 Energy Capacity 1675 Matter Stores 1000 Matter Capacity 1000 Sight Range 22 Terrain Scan Range 16 Terrain Scan Density 185 Armor Coverage 2800 Evasion (%) 55 Targeting Accuracy 6 Recoil Reduction 2 Item Schematics ----------------- None Robot Schematics ------------------ None Fabricated ------------ Nothing Repaired ---------- Nothing Studied --------- None Alien Tech Used ----------------- None Achievements -------------- None Challenges ------------ None Game ------ Seed ElectrostormTitaniumShooter Manual? 0 Play Time 00:32:37 Cumulative 1354.7 hours Start 2026.08.06 @ 08:57:52 End 2026.08.06 @ 10:54:00 Sessions 5 Manual Loads 0 Difficulty Rogue Special Mode None Game No. 1661 Rogue 1377 Adventurer 124 Explorer 160 Win Type - Total 69 Types 54/0/9/4/1/0/0/1/0/0 Lore% 93 Gallery% 84 Achievement% 73 Wizard Run 0 Options --------- Layout 0 ASCII 0 Keyboard 1 Movement Numpad Keybinds 0 Fullscreen 2 Font 18/X11 Map View 76x50 Zoom Use 0% Tactical HUD 1 Map Filters NONE Filters NONE Steam 1 RUN: 681363e6-353f-466e-bffb-7271ecd7af6f